fUST/lending_fUST_20251120
["ID","MTS","AMOUNT","RATE_DAILY","PERIOD"]
[394501989,1763640751540,-209.3720516,6.554e-05,2]
[394501990,1763640758130,-324.02143392,6.553e-05,2]
[394501991,1763640760867,-171.15749456,6.553e-05,2]
[394501992,1763640762923,-4.82107152,6.553e-05,2]
[394501993,1763640762949,-295.17892848,6.553e-05,2]
[394501994,1763640765431,-156.24171136,6.553e-05,2]
[394501995,1763640767251,-48.57936016,6.553e-05,2]
[394501996,1763640767279,-155.99922806,6.553e-05,2]
[394501997,1763640770528,-284.45475011,6.553e-05,2]
[394501998,1763640772888,-174.29091322,6.553e-05,2]
[394501999,1763640775893,-204.50502207,6.553e-05,2]
[394502000,1763640779384,-121.20406471,6.553e-05,2]
[394502001,1763640779411,-106.68764116,6.553e-05,2]
[394502002,1763640781718,-283.57037894,6.553e-05,2]
[394502003,1763640785626,-195.62490762,6.552e-05,2]
[394502004,1763640789041,-104.37509238,6.552e-05,2]
[394502005,1763640789069,-111.49340086,6.553e-05,2]
[394502006,1763640792216,-287.45906821,6.553e-05,2]
[394502007,1763640794855,-218.99074846,6.553e-05,2]
[394502008,1763640794878,-229.2473945,6.553e-05,2]
[394502009,1763640798573,-270.7526055,6.553e-05,2]
[394502010,1763640798602,-37.20824247,6.553e-05,2]
[394502011,1763640800995,-421.49985891,6.553e-05,2]
[394502012,1763640803830,-169.97070942,6.553e-05,2]
[394502013,1763640806170,-334.14140502,6.553e-05,2]
[394502014,1763640809228,-270.36859978,6.553e-05,2]
[394502015,1763640811793,-215.4664002,6.553e-05,2]
[394502016,1763640811818,-10.83105503,6.553e-05,2]
[394502017,1763640813590,-276.60199136,6.553e-05,2]
[394502018,1763640816854,-212.56695361,6.553e-05,2]
[394502019,1763640816884,-34.47188266,6.553e-05,2]
[394502020,1763640819019,-300.0,6.553e-05,2]
[394502021,1763640822771,-154.27065115,6.553e-05,2]
[394502022,1763640825434,-300.00826151,6.553e-05,2]
[394502023,1763640828823,-303.52568229,6.553e-05,2]
[394502024,1763640830286,-250.0,6.553e-05,2]
[394502025,1763640832536,-106.37873819,6.553e-05,2]
[394502026,1763640832558,-72.07595624,6.553e-05,2]
[394502027,1763640834061,-266.50612748,6.553e-05,2]
[394502028,1763640837135,-161.41791628,6.553e-05,2]
[394502029,1763640837158,-95.48500758,6.553e-05,2]
[394502030,1763640839993,-292.47996829,6.553e-05,2]
[394502031,1763640842747,-112.03502413,6.553e-05,2]
[394502032,1763640842773,-70.5923403,6.553e-05,2]
[394502033,1763640846335,-228.20064166,6.552e-05,2]
[394502034,1763640847829,-71.79935834,6.552e-05,2]
[394502035,1763640847854,-148.47200736,6.553e-05,2]
[394502036,1763640849782,-280.93565234,6.553e-05,2]
[394502037,1763640849809,-50.70029595,6.553e-05,2]
[394502038,1763640851315,-159.00977778,6.553e-05,2]
[394502039,1763640853251,-283.96951664,6.553e-05,2]
[394502041,1763640856438,-197.81030389,6.553e-05,2]
[394502042,1763640858453,-300.0,6.553e-05,2]
[394502043,1763640860560,-201.05386391,6.553e-05,2]
[394502044,1763640863369,-256.11145763,6.553e-05,2]
[394502045,1763640863391,-43.88854237,6.553e-05,2]
[394502046,1763640865398,-274.71559819,6.553e-05,2]
[394502047,1763640869338,-181.39585944,6.553e-05,2]
[394502048,1763640869366,-34.63462392,6.553e-05,2]
[394502049,1763640871800,-169.21693772,6.553e-05,2]
[394502050,1763640875346,-213.80379844,6.554e-05,2]
[394502051,1763640876671,-187.14883688,6.552e-05,2]
[394502052,1763640878239,-312.85116312,6.552e-05,2]
[394502053,1763640878265,-215.47712903,6.552e-05,2]
[394502054,1763640881449,-405.69373878,6.552e-05,2]
[394502055,1763640883877,-227.97848245,6.552e-05,2]
[394502056,1763640885434,-237.30060315,6.552e-05,2]
[394502057,1763640885457,-117.92034092,6.552e-05,2]
[394502058,1763640887981,-382.07965908,6.552e-05,2]
[394502059,1763640888007,-156.44293546,6.552e-05,2]
[394502063,1763640891017,-175.10185698,6.552e-05,2]
[394502064,1763640894395,-163.30045192,6.552e-05,2]
[394502065,1763640895933,-269.47309527,6.552e-05,2]
[394502066,1763640897505,-222.13131262,6.552e-05,2]
[394502067,1763640898953,193.776108,0.00030137,120]
[394502068,1763640899190,-100.00030116,6.552e-05,2]
[394502069,1763640899212,-99.77056815,6.552e-05,2]
[394502070,1763640901299,-158.90364742,6.552e-05,2]
[394502071,1763640904784,-180.13349684,6.551e-05,2]
[394502072,1763640906361,-119.86650316,6.551e-05,2]
[394502073,1763640906383,-64.00496624,6.551e-05,2]
[394502074,1763640908460,-235.99503376,6.551e-05,2]
[394502075,1763640908482,-58.85733916,6.551e-05,2]
[394502076,1763640911607,-193.73907496,6.551e-05,2]
[394502077,1763640912897,-47.40358588,6.551e-05,2]
[394502078,1763640912920,-186.9649106,6.551e-05,2]
[394502079,1763640916196,-113.0350894,6.551e-05,2]
[394502080,1763640916217,-310.05853408,6.551e-05,2]
[394502081,1763640918256,-169.94146592,6.551e-05,2]
[394502082,1763640918282,-192.24391483,6.552e-05,2]
[394502083,1763640920367,-49.0818696,6.552e-05,2]
[394502084,1763640920397,-207.91914129,6.552e-05,2]
[394502085,1763640922876,-232.76515431,6.552e-05,2]
[394502086,1763640924671,-194.0172991,6.552e-05,2]
[394502087,1763640927184,-154.94507574,6.552e-05,2]
[394502088,1763640929550,-256.13285679,6.552e-05,2]
[394502089,1763640933760,-40.67042618,6.552e-05,2]
[394502090,1763640933784,-123.46620812,6.552e-05,2]
[394502091,1763640935427,-259.12135482,6.552e-05,2]
[394502094,1763640936995,-117.41243706,6.552e-05,2]
[394502095,1763640937021,-84.15231486,6.552e-05,2]
[394502098,1763640939986,23067.06838959,6.486e-05,2]
[394502099,1763640940251,-169.52504014,6.552e-05,2]
[394502101,1763640942382,-246.322645,6.552e-05,2]
[394502102,1763640942412,-6.08535671,6.552e-05,2]
[394502105,1763640945111,-203.19679978,6.552e-05,2]
[394502106,1763640948249,-450.99122074,6.552e-05,2]
[394502108,1763640950882,-192.67114769,6.552e-05,2]
[394502110,1763640952329,-233.50542849,6.552e-05,2]
[394502111,1763640952354,-10.36171472,6.552e-05,2]
[394502113,1763640953916,-231.08331663,6.552e-05,2]
[394502114,1763640954601,199.77190284,0.00010959,7]
[394502115,1763640956030,-152.46570568,6.552e-05,2]
[394502117,1763640958854,-106.08926297,6.552e-05,2]
[394502118,1763640959018,-365.15717844,6.552e-05,2]
[394502120,1763640960401,-449.32362501,6.552e-05,2]
[394502121,1763640962027,-228.82068515,6.552e-05,2]
[394502123,1763640965760,-43.14846481,6.552e-05,2]
[394502124,1763640965784,-187.88373674,6.552e-05,2]
[394502126,1763640967296,-170.35032243,6.552e-05,2]
[394502128,1763640970104,-141.76594083,6.552e-05,2]
[394502129,1763640970135,-91.95991112,6.552e-05,2]
[394502131,1763640971599,-205.29183447,6.552e-05,2]
[394502133,1763640973074,-187.1797317,6.552e-05,2]
[394502135,1763640976156,-320.37744271,6.552e-05,2]
[394502136,1763640978897,-164.00215664,6.552e-05,2]
[394502138,1763640982003,-117.63887677,6.552e-05,2]
[394502139,1763640982028,-177.79406471,6.552e-05,2]
[394502141,1763640986251,-313.16349938,6.552e-05,2]
[394502143,1763640988067,-9.04243591,6.552e-05,2]
[394502144,1763640988092,-174.16481932,6.552e-05,2]
[394502146,1763640990035,-257.6902626,6.552e-05,2]
[394502150,1763640992645,-68.14491808,6.552e-05,2]
[394502151,1763640992676,-101.54469898,6.552e-05,2]
[394502153,1763640995476,-212.21448732,6.552e-05,2]
[394502156,1763640998041,-155.74603089,6.552e-05,2]
[394502162,1763641001083,565.3376914,6.551e-05,2]
[394502163,1763641002500,-158.11220794,6.552e-05,2]
[394502164,1763641004387,500.0,6.551e-05,2]
[394502165,1763641004439,3017.12555558,6.551e-05,2]
[394502166,1763641004471,500.0,6.551e-05,2]
[394502167,1763641004518,500.0,6.551e-05,2]
[394502168,1763641004564,3017.12555558,6.551e-05,2]
[394502169,1763641004602,500.0,6.551e-05,2]
[394502170,1763641004644,500.0,6.551e-05,2]
[394502171,1763641004699,900.42119744,6.551e-05,2]
[394502172,1763641004730,2116.70435814,6.551e-05,2]
[394502173,1763641004768,500.0,6.551e-05,2]
[394502174,1763641004821,3017.12555558,6.551e-05,2]
[394502175,1763641004869,500.0,6.551e-05,2]
[394502176,1763641004915,3017.12555558,6.551e-05,2]
[394502177,1763641004960,500.0,6.551e-05,2]
[394502178,1763641005003,349.0545307,6.551e-05,2]
[394502179,1763641005035,2668.07102488,6.551e-05,2]
[394502180,1763641005075,500.0,6.551e-05,2]
[394502181,1763641005251,500.0,6.551e-05,2]
[394502182,1763641005293,3017.12555558,6.551e-05,2]
[394502183,1763641005328,500.0,6.551e-05,2]
[394502184,1763641005371,2814.81341954,6.551e-05,2]
[394502185,1763641005402,202.31213604,6.551e-05,2]
[394502186,1763641005436,500.0,6.551e-05,2]
[394502187,1763641005479,500.0,6.551e-05,2]
[394502188,1763641005515,3017.12555558,6.551e-05,2]
[394502189,1763641005571,3017.12555558,6.551e-05,2]
[394502190,1763641005618,2763.4467528,6.551e-05,2]
[394502191,1763641005645,253.67880278,6.551e-05,2]
[394502192,1763641005693,500.0,6.551e-05,2]
[394502193,1763641005730,3017.12555558,6.551e-05,2]
[394502194,1763641005771,500.0,6.551e-05,2]
[394502195,1763641005819,452.04889726,6.551e-05,2]
[394502196,1763641005857,3017.12555558,6.551e-05,2]
[394502197,1763641005890,500.0,6.551e-05,2]
[394502198,1763641005930,500.0,6.551e-05,2]
[394502199,1763641005973,1260.0311888,6.551e-05,2]
[394502200,1763641006001,1757.09436678,6.551e-05,2]
[394502201,1763641006037,500.0,6.551e-05,2]
[394502202,1763641006085,3017.12555558,6.551e-05,2]
[394502203,1763641006117,500.0,6.551e-05,2]
[394502204,1763641006156,500.0,6.551e-05,2]
[394502205,1763641006193,3017.12555558,6.551e-05,2]
[394502206,1763641006232,500.0,6.551e-05,2]
[394502207,1763641006267,208.66452206,6.551e-05,2]
[394502208,1763641006294,2808.46103352,6.551e-05,2]
[394502209,1763641006330,500.0,6.551e-05,2]
[394502210,1763641006369,3017.12555558,6.551e-05,2]
[394502211,1763641006399,500.0,6.551e-05,2]
[394502212,1763641006449,3017.12555558,6.551e-05,2]
[394502213,1763641006480,157.29785532,6.551e-05,2]
[394502214,1763641006505,342.70214468,6.551e-05,2]
[394502215,1763641006545,3017.12555558,6.551e-05,2]
[394502216,1763641006579,500.0,6.551e-05,2]
[394502217,1763641006618,3017.12555558,6.551e-05,2]
[394502218,1763641006654,500.0,6.551e-05,2]
[394502219,1763641006692,500.0,6.551e-05,2]
[394502220,1763641006737,500.0,6.551e-05,2]
[394502221,1763641006784,1623.05674416,6.551e-05,2]
[394502222,1763641006813,1394.06881142,6.551e-05,2]
[394502223,1763641006862,3017.12555558,6.551e-05,2]
[394502224,1763641006903,500.0,6.551e-05,2]
[394502225,1763641006939,3017.12555558,6.551e-05,2]
[394502226,1763641006989,500.0,6.551e-05,2]
[394502227,1763641007025,1571.69007742,6.551e-05,2]
[394502228,1763641007055,1445.43547816,6.551e-05,2]
[394502229,1763641007098,3017.12555558,6.551e-05,2]
[394502230,1763641007150,3017.12555558,6.551e-05,2]
[394502231,1763641007200,2520.32341068,6.551e-05,2]
[394502232,1763641007555,-496.8021449,6.551e-05,2]
[394502233,1763641007583,-27.31826882,6.551e-05,2]
[394502234,1763641009508,-227.90980618,6.551e-05,2]
[394502235,1763641011391,-209.67768778,6.551e-05,2]
[394502236,1763641013376,-407.758921,6.551e-05,2]
[394502237,1763641014635,196.08939808,6.485e-05,2]
[394502238,1763641016445,-271.13,6.551e-05,2]
[394502239,1763641018908,-196.70408005,6.551e-05,2]
[394502240,1763641024714,-300.0,6.55e-05,2]
[394502241,1763641027256,-222.45726927,6.551e-05,2]
[394502242,1763641028913,-1454.16952248,6.551e-05,2]
[394502243,1763641028952,-3017.12555558,6.551e-05,2]
[394502244,1763641029106,-3017.12555558,6.551e-05,2]
[394502245,1763641029143,-948.63333326,6.551e-05,2]
[394502246,1763641029240,-2068.49222232,6.551e-05,2]
[394502247,1763641029277,-2845.89999978,6.551e-05,2]
[394502248,1763641029376,-171.2255558,6.551e-05,2]
[394502249,1763641029414,-3017.12555558,6.551e-05,2]
[394502250,1763641029453,-606.18222166,6.551e-05,2]
[394502251,1763641030437,1800.0,6.485e-05,2]
[394502252,1763641031492,-250.54192838,6.551e-05,2]
[394502253,1763641032430,-2160.40140554,6.551e-05,2]
[394502254,1763641032468,-2662.08163334,6.551e-05,2]
[394502255,1763641032562,-355.04392224,6.551e-05,2]
[394502256,1763641032601,-3017.12555558,6.551e-05,2]
[394502257,1763641032639,-238.54548878,6.551e-05,2]
[394502258,1763641032776,-2778.5800668,6.551e-05,2]
[394502259,1763641032812,-1425.72431082,6.551e-05,2]
[394502260,1763641035213,-163.53164869,6.551e-05,2]
[394502261,1763641037984,-1427.86959607,6.551e-05,2]
[394502262,1763641038022,-3017.12555558,6.551e-05,2]
[394502263,1763641038139,-3017.12555558,6.551e-05,2]
[394502264,1763641038175,-948.63333326,6.551e-05,2]
[394502265,1763641038280,-2068.49222232,6.551e-05,2]
[394502266,1763641038315,-2845.89999978,6.551e-05,2]
[394502267,1763641038586,-163.46915366,6.551e-05,2]
[394502268,1763641040014,-7.75640214,6.551e-05,2]
[394502269,1763641040043,-179.28524712,6.551e-05,2]
[394502270,1763641041051,-2837.84030846,6.551e-05,2]
[394502271,1763641041082,-500.0,6.551e-05,2]
[394502272,1763641041119,-307.2038275,6.551e-05,2]
[394502273,1763641041245,-2709.92172808,6.551e-05,2]
[394502274,1763641041284,-1563.04098826,6.551e-05,2]
[394502275,1763641041345,-1454.08456732,6.551e-05,2]
[394502276,1763641041380,-3017.12555558,6.551e-05,2]
[394502277,1763641041555,-226.99780248,6.551e-05,2]
[394502278,1763641043627,-238.99709118,6.551e-05,2]
[394502279,1763641046367,-163.6630037,6.551e-05,2]
[394502285,1763641048320,-324.10080733,6.551e-05,2]
[394502294,1763641051816,-173.399288,6.551e-05,2]
[394502295,1763641053816,-194.6708573,6.551e-05,2]
[394502296,1763641053895,995.32393142,6.485e-05,2]
[394502297,1763641055304,-60.91777994,6.485e-05,2]
[394502298,1763641055333,-207.71418853,6.551e-05,2]
[394502299,1763641058760,-186.78439548,6.551e-05,2]
[394502300,1763641061706,-183.87134626,6.551e-05,2]
[394502302,1763641063173,-182.11387224,6.485e-05,2]
[394502303,1763641066843,-275.06836306,6.485e-05,2]
[394502304,1763641068422,-250.82962637,6.485e-05,2]
[394502305,1763641069944,-334.19759011,6.485e-05,2]
[394502306,1763641072993,-242.84001876,6.485e-05,2]
[394502307,1763641077423,-232.81279311,6.485e-05,2]
[394502309,1763641079443,-252.53614121,6.485e-05,2]
[394502310,1763641081714,-327.14226415,6.485e-05,2]
[394502311,1763641082820,9404.0,0.00039659,20]
[394502312,1763641085378,-300.30158247,6.485e-05,2]
[394502313,1763641089131,-151.41671009,6.485e-05,2]
[394502359,1763641202904,9404.0,0.00039666,20]
[394502369,1763641251260,308.74,0.00039666,20]
[394502392,1763641281956,322.38,0.00039666,20]
[394502400,1763641303696,-300.0,6.548e-05,2]
[394502401,1763641317077,-222.0,6.549e-05,2]
[394502402,1763641317105,-136.91112571,6.549e-05,2]
[394502403,1763641318905,-26.08887429,6.549e-05,2]
[394502404,1763641318934,-153.0,6.549e-05,2]
[394502405,1763641319928,282.2010983,0.00032876,120]
[394502406,1763641319988,-212.03531193,6.549e-05,2]
[394502408,1763641322135,9404.0,0.00039666,20]
[394502409,1763641322179,-192.24220391,6.549e-05,2]
[394502410,1763641323081,300.0,6.548e-05,2]
[394502411,1763641324254,-95.72248416,6.549e-05,2]
[394502412,1763641324278,-170.43000748,6.549e-05,2]
[394502413,1763641326890,-249.17037363,6.549e-05,2]
[394502414,1763641329083,-80.39961889,6.549e-05,2]
[394502415,1763641329108,-179.89904479,6.549e-05,2]
[394502416,1763641332836,-302.55390884,6.549e-05,2]
[394502417,1763641335483,-17.54704637,6.549e-05,2]
[394502418,1763641335511,-135.95337424,6.549e-05,2]
[394502419,1763641337044,-165.20646106,6.549e-05,2]
[394502420,1763641339565,-193.39770441,6.549e-05,2]
[394502421,1763641341082,-5.44246029,6.549e-05,2]
[394502422,1763641341105,-310.26238176,6.549e-05,2]
[394502423,1763641344093,-189.73761824,6.549e-05,2]
[394502424,1763641344117,-165.1953538,6.549e-05,2]
[394502425,1763641350011,-334.8046462,6.549e-05,2]
[394502426,1763641350033,-118.14718784,6.549e-05,2]
[394502427,1763641353745,-444.77382926,6.549e-05,2]
[394502428,1763641357978,-23.02157143,6.549e-05,2]
[394502429,1763641358017,-398.38755916,6.549e-05,2]
[394502430,1763641360428,-101.61244084,6.549e-05,2]
[394502431,1763641360453,-108.30294818,6.549e-05,2]
[394502432,1763641362030,-232.4927308,6.549e-05,2]
[394502433,1763641365241,-157.59188018,6.549e-05,2]
[394502437,1763641368895,-1.61244084,6.549e-05,2]
[394502438,1763641368919,-187.6986916,6.549e-05,2]
[394502440,1763641370341,-312.3013084,6.549e-05,2]
[394502441,1763641370364,-34.53866994,6.549e-05,2]
[394502442,1763641370656,402.0,6.548e-05,2]
[394502443,1763641372837,-263.84888922,6.549e-05,2]
[394502448,1763641377966,-248.30159134,6.549e-05,2]
[394502449,1763641378619,638.14888939,6.548e-05,2]
[394502450,1763641379277,500.0,6.548e-05,2]
[394502451,1763641380002,500.0,6.548e-05,2]
[394502452,1763641380038,638.14888939,6.548e-05,2]
[394502453,1763641380072,500.0,6.548e-05,2]
[394502454,1763641380108,500.0,6.548e-05,2]
[394502455,1763641380137,-166.84898511,6.55e-05,2]
[394502456,1763641380159,-410.96508793,6.551e-05,2]
[394502458,1763641382166,-89.03491207,6.551e-05,2]
[394502459,1763641382190,-64.65853247,6.551e-05,2]
[394502462,1763641384372,-223.17893548,6.551e-05,2]
[394502464,1763641386325,-174.69062519,6.551e-05,2]
[394502465,1763641388543,-282.9787884,6.551e-05,2]
[394502467,1763641390850,500.0,6.548e-05,2]
[394502468,1763641392121,500.0,6.548e-05,2]
[394502469,1763641392163,638.14888939,6.548e-05,2]
[394502470,1763641392199,500.0,6.548e-05,2]
[394502471,1763641392243,475.61809354,6.548e-05,2]
[394502472,1763641392290,638.14888939,6.548e-05,2]
[394502473,1763641392350,500.0,6.548e-05,2]
[394502474,1763641392411,500.0,6.548e-05,2]
[394502475,1763641392453,638.14888939,6.548e-05,2]
[394502476,1763641392490,500.0,6.548e-05,2]
[394502477,1763641392535,638.14888939,6.548e-05,2]
[394502478,1763641392593,638.14888939,6.548e-05,2]
[394502479,1763641392629,220.26728602,6.548e-05,2]
[394502480,1763641392665,500.0,6.548e-05,2]
[394502481,1763641392708,638.14888939,6.548e-05,2]
[394502482,1763641392745,500.0,6.548e-05,2]
[394502483,1763641392787,638.14888939,6.548e-05,2]
[394502484,1763641392852,638.14888939,6.548e-05,2]
[394502485,1763641392899,198.93350532,6.548e-05,2]
[394502486,1763641392926,439.21538407,6.548e-05,2]
[394502487,1763641392973,638.14888939,6.548e-05,2]
[394502488,1763641393017,638.14888939,6.548e-05,2]
[394502489,1763641393065,638.14888939,6.548e-05,2]
[394502490,1763641393109,638.14888939,6.548e-05,2]
[394502491,1763641393151,638.14888939,6.548e-05,2]
[394502492,1763641393193,638.14888939,6.548e-05,2]
[394502493,1763641393256,638.14888939,6.548e-05,2]
[394502494,1763641393298,638.14888939,6.548e-05,2]
[394502495,1763641393347,638.14888939,6.548e-05,2]
[394502496,1763641393562,638.14888939,6.548e-05,2]
[394502497,1763641393603,638.14888939,6.548e-05,2]
[394502498,1763641393643,638.14888939,6.548e-05,2]
[394502499,1763641393679,638.14888939,6.548e-05,2]
[394502500,1763641393712,638.14888939,6.548e-05,2]
[394502502,1763641393756,626.71016447,6.548e-05,2]
[394502504,1763641393783,11.43872492,6.548e-05,2]
[394502506,1763641393829,638.14888939,6.548e-05,2]
[394502509,1763641393874,638.14888939,6.548e-05,2]
[394502511,1763641393905,500.0,6.548e-05,2]
[394502513,1763641393942,638.14888939,6.548e-05,2]
[394502516,1763641393985,638.14888939,6.548e-05,2]
[394502518,1763641394019,638.14888939,6.548e-05,2]
[394502519,1763641394059,638.14888939,6.548e-05,2]
[394502520,1763641394103,638.14888939,6.548e-05,2]
[394502521,1763641394144,638.14888939,6.548e-05,2]
[394502522,1763641394186,638.14888939,6.548e-05,2]
[394502523,1763641394224,638.14888939,6.548e-05,2]
[394502524,1763641394270,638.14888939,6.548e-05,2]
[394502525,1763641394306,638.14888939,6.548e-05,2]
[394502526,1763641394339,638.14888939,6.548e-05,2]
[394502527,1763641394372,638.14888939,6.548e-05,2]
[394502528,1763641394468,554.48682362,6.548e-05,2]
[394502529,1763641394495,83.66206577,6.548e-05,2]
[394502530,1763641394527,638.14888939,6.548e-05,2]
[394502531,1763641394561,638.14888939,6.548e-05,2]
[394502532,1763641394596,638.14888939,6.548e-05,2]
[394502533,1763641394628,638.14888939,6.548e-05,2]
[394502534,1763641394662,638.14888939,6.548e-05,2]
[394502535,1763641394694,638.14888939,6.548e-05,2]
[394502536,1763641394730,638.14888939,6.548e-05,2]
[394502537,1763641394762,638.14888939,6.548e-05,2]
[394502538,1763641394801,638.14888939,6.548e-05,2]
[394502539,1763641394835,638.14888939,6.548e-05,2]
[394502540,1763641394871,638.14888939,6.548e-05,2]
[394502541,1763641395407,-240.57083382,6.551e-05,2]
[394502542,1763641397711,391.98915067,6.548e-05,2]
[394502556,1763641410505,2727.89791906,6.548e-05,2]
[394502557,1763641410552,2727.89791906,6.548e-05,2]
[394502558,1763641410595,2727.89791906,6.548e-05,2]
[394502559,1763641410645,1424.32709215,6.548e-05,2]
[394502560,1763641410671,1303.57082691,6.548e-05,2]
[394502561,1763641410708,2727.89791906,6.548e-05,2]
[394502562,1763641410751,2727.89791906,6.548e-05,2]
[394502563,1763641410801,2727.89791906,6.548e-05,2]
[394502564,1763641410849,512.74541591,6.548e-05,2]
[394502565,1763641417670,-259.42916618,6.548e-05,2]
[394502570,1763641423650,-210.33789322,6.548e-05,2]
[394502572,1763641426807,-197.23116137,6.548e-05,2]
[394502575,1763641428808,-300.0,6.548e-05,2]
[394502579,1763641432547,-200.0,6.548e-05,2]
[394502583,1763641434035,-154.56490423,6.548e-05,2]
[394502584,1763641438165,-175.94023161,6.548e-05,2]
[394502585,1763641441367,-339.69106062,6.548e-05,2]
[394502588,1763641442613,6464.0,0.00039666,20]
[394502589,1763641443334,-155.81520218,6.547e-05,2]
[394502592,1763641446666,-144.18479782,6.547e-05,2]
[394502593,1763641446694,-203.90960496,6.548e-05,2]
[394502595,1763641450336,-174.04848096,6.548e-05,2]
[394502596,1763641450362,-29.07687745,6.548e-05,2]
[394502598,1763641452781,-197.23116137,6.548e-05,2]
[394502665,1763641706936,500.0,6.527e-05,2]
[394502669,1763641715351,500.0,6.527e-05,2]
[394502675,1763641731052,500.0,6.527e-05,2]
[394502676,1763641732647,8500.01,6.52e-05,2]
[394502677,1763641732670,10000.01,6.52e-05,2]
[394502681,1763641740366,-315.76698739,6.455e-05,2]
[394502683,1763641760724,-220.28031838,6.39e-05,2]
[394502684,1763641767786,-169.58767121,6.39e-05,2]
[394502687,1763641777063,-281.52301221,6.39e-05,2]
[394502691,1763641786057,5146.17852781,0.00039665,120]
[394502730,1763641803746,169.6585334,2.789e-05,2]
[394502731,1763641805851,-160.84270094,6.39e-05,2]
[394502732,1763641815810,-219.57864953,6.39e-05,2]
[394502767,1763641831747,-2948.18764773,6.39e-05,2]
[394502769,1763641831757,-300.0,6.454e-05,2]
[394502771,1763641831767,-300.0,6.454e-05,2]
[394502773,1763641831776,-300.0,6.454e-05,2]
[394502775,1763641831786,-300.0,6.454e-05,2]
[394502777,1763641831795,-9273.33605184,6.455e-05,2]
[394502793,1763641831952,-871499.98,6.52e-05,2]
[394502795,1763641831963,-500.0,6.593e-05,2]
[394502797,1763641831972,-4728.31138735,6.593e-05,2]
[394502799,1763641831982,-163.51200541,6.606e-05,2]
[394502801,1763641831991,-500.0,6.618e-05,2]
[394502803,1763641832000,-500.0,6.618e-05,2]
[394502804,1763641832009,-500.0,6.618e-05,2]
[394502805,1763641832018,-441.73534373,6.618e-05,2]
[394502807,1763641832028,-500.0,6.618e-05,2]
[394502809,1763641832042,-500.0,6.618e-05,2]
[394502810,1763641832051,-500.0,6.618e-05,2]
[394502812,1763641832061,-500.0,6.618e-05,2]
[394502814,1763641832070,-500.0,6.618e-05,2]
[394502816,1763641832080,-500.0,6.618e-05,2]
[394502818,1763641832089,-500.0,6.618e-05,2]
[394502820,1763641832098,-500.0,6.618e-05,2]
[394502821,1763641832108,-500.0,6.618e-05,2]
[394502823,1763641832117,-500.0,6.618e-05,2]
[394502825,1763641832127,-500.0,6.618e-05,2]
[394502827,1763641832136,-500.0,6.618e-05,2]
[394502829,1763641832145,-500.0,6.618e-05,2]
[394502831,1763641832155,-500.0,6.618e-05,2]
[394502833,1763641832164,-500.0,6.618e-05,2]
[394502834,1763641832173,-500.0,6.618e-05,2]
[394502836,1763641832182,-500.0,6.618e-05,2]
[394502838,1763641832192,-500.0,6.618e-05,2]
[394502840,1763641832201,-500.0,6.618e-05,2]
[394502842,1763641832210,-500.0,6.618e-05,2]
[394502844,1763641832219,-500.0,6.618e-05,2]
[394502845,1763641832228,-500.0,6.618e-05,2]
[394502847,1763641832238,-500.0,6.618e-05,2]
[394502849,1763641832247,-500.0,6.618e-05,2]
[394502851,1763641832256,-500.0,6.618e-05,2]
[394502853,1763641832265,-500.0,6.618e-05,2]
[394502855,1763641832275,-500.0,6.618e-05,2]
[394502857,1763641832284,-500.0,6.618e-05,2]
[394502859,1763641832294,-500.0,6.618e-05,2]
[394502861,1763641832303,-500.0,6.618e-05,2]
[394502863,1763641832311,-500.0,6.618e-05,2]
[394502864,1763641832320,-500.0,6.618e-05,2]
[394502866,1763641832329,-500.0,6.618e-05,2]
[394502868,1763641832339,-500.0,6.618e-05,2]
[394502870,1763641832349,-500.0,6.618e-05,2]
[394502872,1763641832358,-500.0,6.618e-05,2]
[394502873,1763641832367,-500.0,6.618e-05,2]
[394502875,1763641832376,-500.0,6.618e-05,2]
[394502877,1763641832385,-500.0,6.618e-05,2]
[394502879,1763641832395,-500.0,6.618e-05,2]
[394502881,1763641832404,-500.0,6.618e-05,2]
[394502883,1763641832413,-500.0,6.618e-05,2]
[394502885,1763641832422,-500.0,6.618e-05,2]
[394502886,1763641832431,-500.0,6.618e-05,2]
[394502888,1763641832440,-500.0,6.618e-05,2]
[394502890,1763641832448,-500.0,6.618e-05,2]
[394502892,1763641832458,-500.0,6.618e-05,2]
[394502894,1763641832467,-469.89231161,6.618e-05,2]
[394502896,1763641832476,-500.0,6.618e-05,2]
[394502897,1763641832485,-1795.92930372,6.618e-05,2]
[394502900,1763641832497,-1016.70874072,6.618e-05,2]
[394502943,1763641838428,-1634.72264391,6.618e-05,2]
[394502945,1763641838438,-246.69636511,6.618e-05,2]
[394502947,1763641838447,-2589.11733045,6.618e-05,2]